[Event "*** Titled Tuesday Blitz"]
[Site "Chess.com"]
[Date "2020.05.05"]
[Round "5"]
[White "dragos420"]
[Black "Oligan22"]
[Result "1-0"]
[WhiteElo "2510"]
[BlackElo "2350"]
[TimeControl "180+1"]
[EndTime "10:58:00 PDT"]
[Termination "dragos420 won by checkmate"]

1. e4 {[%clk 0:03:00.9]} 1... c6 {[%clk 0:03:00.2]} 2. Nc3 {[%clk 0:02:59.9]}
2... d5 {[%clk 0:03:00.8]} 3. Qf3 {[%clk 0:03:00.6]} 3... dxe4 {[%clk
0:02:58.1]} 4. Nxe4 {[%clk 0:03:01.5]} 4... Nf6 {[%clk 0:02:58.5]} 5. Bc4 {[%clk
0:02:59.8]} 5... Nbd7 {[%clk 0:02:43.8]} 6. d3 {[%clk 0:02:30]} 6... Ne5 {[%clk
0:02:40.5]} 7. Nxf6+ {[%clk 0:02:29.5]} 7... exf6 {[%clk 0:02:35.7]} 8. Qe2
{[%clk 0:02:29.3]} 8... Be7 {[%clk 0:02:34.8]} 9. Bb3 {[%clk 0:02:20]} 9... O-O
{[%clk 0:02:34.9]} 10. Be3 {[%clk 0:02:17.1]} 10... a5 {[%clk 0:02:28.5]} 11. d4
{[%clk 0:02:06.2]} 11... Ng6 {[%clk 0:02:25.4]} 12. O-O-O {[%clk 0:01:54.3]}
12... a4 {[%clk 0:02:04.9]} 13. Bc4 {[%clk 0:01:53.7]} 13... b5 {[%clk
0:02:05.6]} 14. Bd3 {[%clk 0:01:53.8]} 14... Be6 {[%clk 0:02:06.2]} 15. h4
{[%clk 0:01:39.8]} 15... Re8 {[%clk 0:01:37.3]} 16. a3 {[%clk 0:00:44.6]} 16...
b4 {[%clk 0:01:34.1]} 17. d5 {[%clk 0:00:40.4]} 17... cxd5 {[%clk 0:01:15.5]}
18. Bb5 {[%clk 0:00:36.3]} 18... bxa3 {[%clk 0:01:15.4]} 19. Bxe8 {[%clk
0:00:28.4]} 19... axb2+ {[%clk 0:01:02.4]} 20. Kxb2 {[%clk 0:00:29.3]} 20...
Qxe8 {[%clk 0:00:54.1]} 21. Bd4 {[%clk 0:00:23.9]} 21... Qb8+ {[%clk 0:00:42.3]}
22. Ka1 {[%clk 0:00:21]} 22... Qb4 {[%clk 0:00:36.8]} 23. Qe3 {[%clk 0:00:16]}
23... Rb8 {[%clk 0:00:32.6]} 24. Qc3 {[%clk 0:00:13]} 24... Qb5 {[%clk
0:00:25.1]} 25. Nf3 {[%clk 0:00:11.6]} 25... Bb4 {[%clk 0:00:22.9]} 26. Qd3
{[%clk 0:00:11.8]} 26... Qa5 {[%clk 0:00:15.7]} 27. g3 {[%clk 0:00:10.3]} 27...
Rc8 {[%clk 0:00:15.8]} 28. h5 {[%clk 0:00:07.6]} 28... Ne7 {[%clk 0:00:15.9]}
29. h6 {[%clk 0:00:07.2]} 29... g6 {[%clk 0:00:15.1]} 30. Bxf6 {[%clk
0:00:06.8]} 30... Nc6 {[%clk 0:00:14.6]} 31. c3 {[%clk 0:00:04.4]} 31... Ba3
{[%clk 0:00:11.8]} 32. Nd4 {[%clk 0:00:04]} 32... Na7 {[%clk 0:00:08.9]} 33. Rb1
{[%clk 0:00:04]} 33... Rxc3 {[%clk 0:00:07.8]} 34. Rb8+ {[%clk 0:00:03.5]} 34...
Nc8 {[%clk 0:00:08.1]} 35. Qd2 {[%clk 0:00:02.2]} 35... Qc5 {[%clk 0:00:07.1]}
36. Nxe6 {[%clk 0:00:02.3]} 36... fxe6 {[%clk 0:00:07.4]} 37. Bxc3 {[%clk
0:00:02.4]} 37... Qc7 {[%clk 0:00:06.4]} 38. Qd4 {[%clk 0:00:02.4]} 38... Kf8
{[%clk 0:00:04.2]} 39. Qh8+ {[%clk 0:00:02.3]} 39... Ke7 {[%clk 0:00:04.5]} 40.
Qg7+ {[%clk 0:00:02.8]} 40... Kd8 {[%clk 0:00:04.3]} 41. Qxc7+ {[%clk
0:00:03.7]} 41... Kxc7 {[%clk 0:00:04.2]} 42. Ra8 {[%clk 0:00:04]} 42... Nb6
{[%clk 0:00:04.4]} 43. Rh8 {[%clk 0:00:04.1]} 43... Nc4 {[%clk 0:00:04.4]} 44.
Rxh7+ {[%clk 0:00:05]} 44... Kc6 {[%clk 0:00:04.9]} 45. Rg7 {[%clk 0:00:05.5]}
45... d4 {[%clk 0:00:05.4]} 46. Bxd4 {[%clk 0:00:05.5]} 46... Kd5 {[%clk
0:00:06.3]} 47. Bc3 {[%clk 0:00:06]} 47... Bc5 {[%clk 0:00:06.6]} 48. Rxg6
{[%clk 0:00:06.4]} 48... e5 {[%clk 0:00:06.5]} 49. h7 {[%clk 0:00:06.8]} 49...
a3 {[%clk 0:00:07.4]} 50. h8=Q {[%clk 0:00:07.3]} 50... Nd2 {[%clk 0:00:07.5]}
51. Qg8+ {[%clk 0:00:07.8]} 51... Ke4 {[%clk 0:00:05.9]} 52. Bxd2 {[%clk
0:00:08.7]} 52... a2 {[%clk 0:00:06.2]} 53. Qc4+ {[%clk 0:00:08.7]} 53... Bd4+
{[%clk 0:00:07.1]} 54. Kxa2 {[%clk 0:00:08.8]} 54... Kf3 {[%clk 0:00:07.2]} 55.
Qd3+ {[%clk 0:00:07.8]} 55... Kg2 {[%clk 0:00:07.4]} 56. Rf1 {[%clk 0:00:08.5]}
56... Kh2 {[%clk 0:00:07.5]} 57. f4 {[%clk 0:00:09]} 57... Bg1 {[%clk
0:00:07.3]} 58. fxe5 {[%clk 0:00:09.4]} 58... Kg2 {[%clk 0:00:07.6]} 59. Qf3+
{[%clk 0:00:08.9]} 59... Kh3 {[%clk 0:00:08.5]} 60. Rh6# {[%clk 0:00:09.8]} 1-0

[Event "*** Titled Tuesday Blitz"]
[Site "Chess.com"]
[Date "2020.05.05"]
[Round "5"]
[White "stolencandy13"]
[Black "GasconJR"]
[Result "0-1"]
[WhiteElo "2538"]
[BlackElo "2608"]
[TimeControl "180+1"]
[EndTime "10:58:05 PDT"]
[Termination "GasconJR won by resignation"]

1. e4 {[%clk 0:03:00.9]} 1... c5 {[%clk 0:02:59.5]} 2. Nf3 {[%clk 0:03:00.6]}
2... Nc6 {[%clk 0:02:59.4]} 3. d4 {[%clk 0:02:59.9]} 3... cxd4 {[%clk
0:02:59.3]} 4. Nxd4 {[%clk 0:03:00.8]} 4... Nf6 {[%clk 0:02:57.9]} 5. Nc3 {[%clk
0:02:58.3]} 5... e5 {[%clk 0:02:57.9]} 6. Ndb5 {[%clk 0:02:55.3]} 6... d6 {[%clk
0:02:57.9]} 7. Bg5 {[%clk 0:02:53]} 7... a6 {[%clk 0:02:57]} 8. Na3 {[%clk
0:02:53.5]} 8... b5 {[%clk 0:02:56.8]} 9. Nd5 {[%clk 0:02:54.1]} 9... Be7 {[%clk
0:02:56.4]} 10. Bxf6 {[%clk 0:02:52.2]} 10... Bxf6 {[%clk 0:02:57.3]} 11. c4
{[%clk 0:02:52.8]} 11... b4 {[%clk 0:02:55.8]} 12. Nc2 {[%clk 0:02:52.8]} 12...
O-O {[%clk 0:02:55.5]} 13. g3 {[%clk 0:02:52.8]} 13... a5 {[%clk 0:02:52.9]} 14.
Bg2 {[%clk 0:02:52.7]} 14... Bg5 {[%clk 0:02:53.1]} 15. O-O {[%clk 0:02:51.9]}
15... Ne7 {[%clk 0:02:53.2]} 16. Nce3 {[%clk 0:02:47.1]} 16... Bxe3 {[%clk
0:02:51.2]} 17. Nxe3 {[%clk 0:02:46.5]} 17... Qc7 {[%clk 0:02:48.1]} 18. Qd2
{[%clk 0:02:45.5]} 18... Be6 {[%clk 0:02:47.3]} 19. b3 {[%clk 0:02:44.9]} 19...
Qc5 {[%clk 0:02:43.8]} 20. f4 {[%clk 0:02:28.4]} 20... f6 {[%clk 0:02:39.9]} 21.
Kh1 {[%clk 0:02:17.4]} 21... Rfd8 {[%clk 0:02:28.5]} 22. f5 {[%clk 0:02:08.4]}
22... Bf7 {[%clk 0:02:26.4]} 23. g4 {[%clk 0:02:08.3]} 23... Nc6 {[%clk
0:02:25.1]} 24. Nc2 {[%clk 0:01:53.1]} 24... a4 {[%clk 0:02:21.5]} 25. h4 {[%clk
0:01:50.2]} 25... Kf8 {[%clk 0:02:20.2]} 26. g5 {[%clk 0:01:46.7]} 26... Ke7
{[%clk 0:02:15.8]} 27. Bf3 {[%clk 0:01:37.5]} 27... Ra7 {[%clk 0:01:57.9]} 28.
Rg1 {[%clk 0:01:33.4]} 28... axb3 {[%clk 0:01:34.2]} 29. axb3 {[%clk 0:01:29.9]}
29... Rxa1 {[%clk 0:01:34.1]} 30. Rxa1 {[%clk 0:01:26.7]} 30... Rd7 {[%clk
0:01:32.3]} 31. Ra8 {[%clk 0:01:05.4]} 31... Ra7 {[%clk 0:00:28.5]} 32. Rxa7+
{[%clk 0:01:02]} 32... Qxa7 {[%clk 0:00:29.4]} 33. Nxb4 {[%clk 0:00:50.7]} 33...
Qa1+ {[%clk 0:00:29.1]} 34. Kg2 {[%clk 0:00:47.1]} 34... Nd4 {[%clk 0:00:29.6]}
35. Bd1 {[%clk 0:00:39.2]} 35... Qb1 {[%clk 0:00:16.2]} 36. Nd5+ {[%clk
0:00:15.6]} 36... Bxd5 {[%clk 0:00:15.5]} 37. cxd5 {[%clk 0:00:16]} 37... Qxe4+
{[%clk 0:00:14.9]} 38. Kf2 {[%clk 0:00:14.8]} 38... Qxf5+ {[%clk 0:00:14.1]} 39.
Kg2 {[%clk 0:00:13.6]} 39... Qe4+ {[%clk 0:00:13]} 40. Kf2 {[%clk 0:00:13.6]}
40... Qxh4+ {[%clk 0:00:12.9]} 41. Kf1 {[%clk 0:00:13.3]} 41... Qh1+ {[%clk
0:00:12.4]} 42. Kf2 {[%clk 0:00:13.2]} 42... Qh2+ {[%clk 0:00:11.4]} 43. Ke3
{[%clk 0:00:13.8]} 43... Qf4+ {[%clk 0:00:07.2]} 44. Kd3 {[%clk 0:00:13.4]}
44... Qxd2+ {[%clk 0:00:05.2]} 45. Kxd2 {[%clk 0:00:13.7]} 45... fxg5 {[%clk
0:00:05.9]} 46. Kd3 {[%clk 0:00:14.1]} 46... g6 {[%clk 0:00:05.4]} 47. b4 {[%clk
0:00:14.5]} 47... Kd8 {[%clk 0:00:05.6]} 48. Kc4 {[%clk 0:00:14.7]} 48... Kc7
{[%clk 0:00:06]} 49. Ba4 {[%clk 0:00:14.8]} 49... Kb6 {[%clk 0:00:06.1]} 50. Be8
{[%clk 0:00:14.9]} 50... g4 {[%clk 0:00:06.2]} 51. Bd7 {[%clk 0:00:14.2]} 51...
g3 {[%clk 0:00:06.4]} 52. Bh3 {[%clk 0:00:14.7]} 52... h5 {[%clk 0:00:06.7]} 53.
Bf1 {[%clk 0:00:14.2]} 53... g5 {[%clk 0:00:03.2]} 54. Kd3 {[%clk 0:00:14.5]}
54... g4 {[%clk 0:00:01.9]} 55. Ke3 {[%clk 0:00:14.9]} 55... h4 {[%clk
0:00:02.8]} 56. Bd3 {[%clk 0:00:11.3]} 56... h3 {[%clk 0:00:03.7]} 57. Be4
{[%clk 0:00:10.6]} 57... g2 {[%clk 0:00:04.6]} 58. Kf2 {[%clk 0:00:10.6]} 58...
Nf3 {[%clk 0:00:05.2]} 59. Bxf3 {[%clk 0:00:09.2]} 59... gxf3 {[%clk 0:00:04.3]}
60. Kg1 {[%clk 0:00:10.1]} 60... e4 {[%clk 0:00:05.2]} 61. b5 {[%clk 0:00:09.9]}
61... e3 {[%clk 0:00:05.7]} 62. Kh2 {[%clk 0:00:10.4]} 62... e2 {[%clk 0:00:06]}
0-1

[Event "*** Titled Tuesday Blitz"]
[Site "Chess.com"]
[Date "2020.05.05"]
[Round "5"]
[White "AsaHoffmann"]
[Black "Unknown_IM"]
[Result "0-1"]
[WhiteElo "2372"]
[BlackElo "2534"]
[TimeControl "180+1"]
[EndTime "10:58:06 PDT"]
[Termination "Unknown_IM won on time"]

1. d4 {[%clk 0:02:30.2]} 1... d5 {[%clk 0:02:56.5]} 2. Bg5 {[%clk 0:02:28]} 2...
f6 {[%clk 0:02:56]} 3. Bf4 {[%clk 0:02:27.6]} 3... Nc6 {[%clk 0:02:51.5]} 4. e3
{[%clk 0:02:25.3]} 4... Bf5 {[%clk 0:02:46.3]} 5. c4 {[%clk 0:02:24.4]} 5... e6
{[%clk 0:02:46.4]} 6. Nc3 {[%clk 0:02:22.5]} 6... Bb4 {[%clk 0:02:45.7]} 7. Nf3
{[%clk 0:02:19.6]} 7... Nge7 {[%clk 0:02:45.3]} 8. Qb3 {[%clk 0:02:19.1]} 8...
O-O {[%clk 0:02:43]} 9. h3 {[%clk 0:02:18.3]} 9... Re8 {[%clk 0:02:39.6]} 10.
Nh4 {[%clk 0:02:17.3]} 10... Be4 {[%clk 0:02:27]} 11. f3 {[%clk 0:02:13.4]}
11... Bg6 {[%clk 0:02:25.5]} 12. Nxg6 {[%clk 0:02:12.8]} 12... Nxg6 {[%clk
0:02:26.4]} 13. Bg3 {[%clk 0:02:11.6]} 13... a5 {[%clk 0:02:06.5]} 14. cxd5
{[%clk 0:02:05.8]} 14... exd5 {[%clk 0:02:05.8]} 15. Kf2 {[%clk 0:02:04.7]}
15... Nce7 {[%clk 0:01:49.4]} 16. Bd3 {[%clk 0:01:57.4]} 16... c6 {[%clk
0:01:48.1]} 17. Rhe1 {[%clk 0:01:53.5]} 17... Bd6 {[%clk 0:01:42.1]} 18. Bxd6
{[%clk 0:01:44.8]} 18... Qxd6 {[%clk 0:01:43]} 19. Rac1 {[%clk 0:01:20.1]} 19...
Kh8 {[%clk 0:01:38.1]} 20. Qc2 {[%clk 0:01:15.4]} 20... b5 {[%clk 0:01:34.8]}
21. a3 {[%clk 0:01:12.2]} 21... Qh2 {[%clk 0:01:27.5]} 22. Ne2 {[%clk
0:01:08.2]} 22... Qd6 {[%clk 0:01:12.7]} 23. Qc5 {[%clk 0:01:00.7]} 23... Qd7
{[%clk 0:01:03.2]} 24. Rh1 {[%clk 0:00:58]} 24... Nh4 {[%clk 0:00:57]} 25. e4
{[%clk 0:00:51.9]} 25... dxe4 {[%clk 0:00:53.1]} 26. fxe4 {[%clk 0:00:50.6]}
26... f5 {[%clk 0:00:52.5]} 27. e5 {[%clk 0:00:49.4]} 27... Qe6 {[%clk
0:00:45.7]} 28. g3 {[%clk 0:00:46.6]} 28... Nhg6 {[%clk 0:00:44.3]} 29. h4
{[%clk 0:00:45.8]} 29... f4 {[%clk 0:00:39.3]} 30. gxf4 {[%clk 0:00:42.4]} 30...
Nxf4 {[%clk 0:00:40.2]} 31. Nxf4 {[%clk 0:00:40.9]} 31... Rf8 {[%clk 0:00:37.4]}
32. Ke3 {[%clk 0:00:40.6]} 32... Qh6 {[%clk 0:00:33.7]} 33. Rcf1 {[%clk
0:00:39.7]} 33... Nd5+ {[%clk 0:00:33.7]} 34. Kd2 {[%clk 0:00:31.6]} 34... Rxf4
{[%clk 0:00:28.9]} 35. Kc2 {[%clk 0:00:30.9]} 35... Ne3+ {[%clk 0:00:26.5]} 36.
Kb1 {[%clk 0:00:27.2]} 36... Nxf1 {[%clk 0:00:26.7]} 37. Bxf1 {[%clk 0:00:23.5]}
37... Rxf1+ {[%clk 0:00:27.6]} 38. Rxf1 {[%clk 0:00:22.5]} 38... Qg6+ {[%clk
0:00:22.8]} 39. Ka2 {[%clk 0:00:19.7]} 39... h6 {[%clk 0:00:22.5]} 40. Rf8+
{[%clk 0:00:17.3]} 40... Rxf8 {[%clk 0:00:21.7]} 41. Qxf8+ {[%clk 0:00:16.7]}
41... Kh7 {[%clk 0:00:22.6]} 42. Qf3 {[%clk 0:00:15.3]} 42... Qe6+ {[%clk
0:00:22.1]} 43. Ka1 {[%clk 0:00:14.1]} 43... b4 {[%clk 0:00:22.1]} 44. Qe4+
{[%clk 0:00:13.2]} 44... Kh8 {[%clk 0:00:21.1]} 45. axb4 {[%clk 0:00:12.3]}
45... axb4 {[%clk 0:00:22]} 46. Kb1 {[%clk 0:00:10.8]} 46... b3 {[%clk
0:00:21.1]} 47. Kc1 {[%clk 0:00:10.4]} 47... Qc4+ {[%clk 0:00:20.9]} 48. Kd1
{[%clk 0:00:10]} 48... Qf1+ {[%clk 0:00:20.9]} 49. Kd2 {[%clk 0:00:09.5]} 49...
Qc4 {[%clk 0:00:20.5]} 50. e6 {[%clk 0:00:08.9]} 50... Qb4+ {[%clk 0:00:17.7]}
51. Ke2 {[%clk 0:00:08]} 51... Qe7 {[%clk 0:00:17]} 52. Kd3 {[%clk 0:00:06.9]}
52... Kg8 {[%clk 0:00:16.7]} 53. h5 {[%clk 0:00:06.7]} 53... Kf8 {[%clk
0:00:13.5]} 54. Qxc6 {[%clk 0:00:06]} 54... Qh4 {[%clk 0:00:12.7]} 55. Qe4
{[%clk 0:00:05.2]} 55... Qh3+ {[%clk 0:00:11.9]} 56. Kc4 {[%clk 0:00:04.8]}
56... Qxh5 {[%clk 0:00:10.3]} 57. d5 {[%clk 0:00:04.5]} 57... Qd1 {[%clk
0:00:09.7]} 58. d6 {[%clk 0:00:03.6]} 58... Qc2+ {[%clk 0:00:09.7]} 59. Kb5
{[%clk 0:00:03]} 59... Qxe4 {[%clk 0:00:09.6]} 60. e7+ {[%clk 0:00:01.9]} 60...
Ke8 {[%clk 0:00:09.3]} 0-1

[Event "*** Titled Tuesday Blitz"]
[Site "Chess.com"]
[Date "2020.05.05"]
[Round "5"]
[White "PawnEatingZombie"]
[Black "asimali1977"]
[Result "1-0"]
[WhiteElo "2146"]
[BlackElo "1947"]
[TimeControl "180+1"]
[EndTime "10:58:08 PDT"]
[Termination "PawnEatingZombie won on time"]

1. d4 {[%clk 0:03:00.9]} 1... g6 {[%clk 0:02:55.4]} 2. e4 {[%clk 0:03:00]} 2...
Bg7 {[%clk 0:02:55.3]} 3. Nf3 {[%clk 0:03:00.5]} 3... c5 {[%clk 0:02:53.8]} 4.
dxc5 {[%clk 0:02:58.6]} 4... Nc6 {[%clk 0:02:47.3]} 5. Nc3 {[%clk 0:02:22]} 5...
Nf6 {[%clk 0:02:45.1]} 6. Bc4 {[%clk 0:02:11]} 6... O-O {[%clk 0:02:44.2]} 7.
O-O {[%clk 0:02:10.4]} 7... b6 {[%clk 0:02:40.2]} 8. cxb6 {[%clk 0:02:08.5]}
8... axb6 {[%clk 0:02:40.2]} 9. Be3 {[%clk 0:01:58.6]} 9... d6 {[%clk 0:02:37]}
10. h3 {[%clk 0:01:54.7]} 10... Bb7 {[%clk 0:02:30.2]} 11. Re1 {[%clk
0:01:34.1]} 11... Nd7 {[%clk 0:02:25.6]} 12. Nd4 {[%clk 0:01:00]} 12... Nce5
{[%clk 0:02:13.2]} 13. Bb3 {[%clk 0:00:59.6]} 13... Nc5 {[%clk 0:02:07.8]} 14.
f3 {[%clk 0:00:59.3]} 14... e6 {[%clk 0:01:57.9]} 15. Ndb5 {[%clk 0:00:57]}
15... Qh4 {[%clk 0:01:44.3]} 16. Qxd6 {[%clk 0:00:39.7]} 16... Rfd8 {[%clk
0:01:39]} 17. Qxb6 {[%clk 0:00:38.7]} 17... Rac8 {[%clk 0:01:34]} 18. Bxc5
{[%clk 0:00:27.1]} 18... Rxc5 {[%clk 0:01:24.5]} 19. Qxc5 {[%clk 0:00:26.3]}
19... Qg3 {[%clk 0:01:18.6]} 20. Qf2 {[%clk 0:00:21.7]} 20... Qf4 {[%clk
0:01:09.4]} 21. Rad1 {[%clk 0:00:20.7]} 21... Rc8 {[%clk 0:00:59.6]} 22. Nd4
{[%clk 0:00:19.9]} 22... Ba6 {[%clk 0:00:49.8]} 23. Nde2 {[%clk 0:00:19]} 23...
Qg5 {[%clk 0:00:46.1]} 24. f4 {[%clk 0:00:17.7]} 24... Qh5 {[%clk 0:00:38.3]}
25. fxe5 {[%clk 0:00:16.8]} 25... Bxe5 {[%clk 0:00:37.7]} 26. Nf4 {[%clk
0:00:12.4]} 26... Qg5 {[%clk 0:00:36.5]} 27. g3 {[%clk 0:00:11.8]} 27... Bb7
{[%clk 0:00:32.1]} 28. Re3 {[%clk 0:00:05.9]} 28... Kg7 {[%clk 0:00:31.1]} 29.
Bxe6 {[%clk 0:00:04.5]} 29... Rd8 {[%clk 0:00:23.8]} 30. Rxd8 {[%clk 0:00:03.1]}
30... Qxd8 {[%clk 0:00:23]} 31. Rd3 {[%clk 0:00:03.6]} 31... Qf6 {[%clk
0:00:18.7]} 32. Bd5 {[%clk 0:00:04.5]} 32... Bxd5 {[%clk 0:00:15.8]} 33. Ncxd5
{[%clk 0:00:04.7]} 33... Qg5 {[%clk 0:00:14.6]} 34. c3 {[%clk 0:00:04.7]} 34...
h5 {[%clk 0:00:13.1]} 35. Kg2 {[%clk 0:00:05]} 35... h4 {[%clk 0:00:12.7]} 36.
Qf3 {[%clk 0:00:05.4]} 36... hxg3 {[%clk 0:00:12.2]} 37. Qxg3 {[%clk 0:00:05.6]}
37... Qh6 {[%clk 0:00:11.3]} 38. Qg4 {[%clk 0:00:04.5]} 38... Bxf4 {[%clk
0:00:10.7]} 39. Nxf4 {[%clk 0:00:04.1]} 39... Qh8 {[%clk 0:00:08.6]} 40. Rd7
{[%clk 0:00:03.7]} 40... Qc8 {[%clk 0:00:07.3]} 41. Qe6 {[%clk 0:00:01.5]} 41...
Qf8 {[%clk 0:00:03.4]} 42. Qxf7+ {[%clk 0:00:01.7]} 42... Qxf7 {[%clk
0:00:03.2]} 43. Rxf7+ {[%clk 0:00:02.6]} 43... Kxf7 {[%clk 0:00:03.2]} 44. c4
{[%clk 0:00:03.5]} 44... Kf6 {[%clk 0:00:03.4]} 45. b4 {[%clk 0:00:04.4]} 45...
g5 {[%clk 0:00:03.7]} 46. Kf3 {[%clk 0:00:05.3]} 46... Ke5 {[%clk 0:00:03.8]}
47. Ng6+ {[%clk 0:00:04.9]} 47... Kd4 {[%clk 0:00:03.5]} 48. c5 {[%clk
0:00:05.8]} 48... Kc4 {[%clk 0:00:03.5]} 49. c6 {[%clk 0:00:06.2]} 49... Kxb4
{[%clk 0:00:03.7]} 50. c7 {[%clk 0:00:07.1]} 50... Ka3 {[%clk 0:00:04.1]} 51.
c8=Q {[%clk 0:00:07.7]} 51... Kxa2 {[%clk 0:00:04.3]} 52. Qb8 {[%clk 0:00:08.2]}
52... Ka1 {[%clk 0:00:04.2]} 53. e5 {[%clk 0:00:08.7]} 53... Ka2 {[%clk
0:00:04.4]} 54. Kg4 {[%clk 0:00:08.9]} 54... Ka3 {[%clk 0:00:03.6]} 55. e6
{[%clk 0:00:09.5]} 55... Ka2 {[%clk 0:00:03.6]} 56. e7 {[%clk 0:00:10.1]} 56...
Ka1 {[%clk 0:00:04]} 57. e8=Q {[%clk 0:00:10.5]} 1-0

[Event "*** Titled Tuesday Blitz"]
[Site "Chess.com"]
[Date "2020.05.05"]
[Round "5"]
[White "NikolaGry"]
[Black "mishikomchedlishvili"]
[Result "0-1"]
[WhiteElo "2620"]
[BlackElo "2849"]
[TimeControl "180+1"]
[EndTime "10:58:09 PDT"]
[Termination "mishikomchedlishvili won on time"]

1. b3 {[%clk 0:03:00.9]} 1... d5 {[%clk 0:02:58.9]} 2. Bb2 {[%clk 0:03:00]} 2...
Bg4 {[%clk 0:02:58.9]} 3. h3 {[%clk 0:02:56.9]} 3... Bh5 {[%clk 0:02:57.8]} 4.
Nf3 {[%clk 0:02:57]} 4... Bxf3 {[%clk 0:02:57.1]} 5. gxf3 {[%clk 0:02:57]} 5...
e6 {[%clk 0:02:53.9]} 6. e3 {[%clk 0:02:57]} 6... Nd7 {[%clk 0:02:53]} 7. c4
{[%clk 0:02:56.3]} 7... c6 {[%clk 0:02:52.5]} 8. f4 {[%clk 0:02:51.1]} 8... Ngf6
{[%clk 0:02:52.4]} 9. Nc3 {[%clk 0:02:50.2]} 9... g6 {[%clk 0:02:51.5]} 10. Bg2
{[%clk 0:02:41.3]} 10... Bg7 {[%clk 0:02:51.5]} 11. d4 {[%clk 0:02:40.3]} 11...
O-O {[%clk 0:02:48.6]} 12. O-O {[%clk 0:02:39.4]} 12... a6 {[%clk 0:02:41.8]}
13. Rc1 {[%clk 0:02:36.9]} 13... Kh8 {[%clk 0:02:39.5]} 14. Ne2 {[%clk 0:02:34]}
14... Ne8 {[%clk 0:02:36.1]} 15. Ng3 {[%clk 0:02:30.5]} 15... f5 {[%clk
0:02:30.5]} 16. Kh2 {[%clk 0:02:08.3]} 16... Rg8 {[%clk 0:02:29.8]} 17. Rg1
{[%clk 0:02:06.4]} 17... Qh4 {[%clk 0:02:26]} 18. b4 {[%clk 0:01:56.5]} 18...
Ndf6 {[%clk 0:02:21]} 19. Bf3 {[%clk 0:01:54.6]} 19... Nd6 {[%clk 0:02:19.5]}
20. c5 {[%clk 0:01:46.3]} 20... Nde4 {[%clk 0:02:19.3]} 21. Qe2 {[%clk
0:01:39.8]} 21... g5 {[%clk 0:01:59]} 22. Bxe4 {[%clk 0:01:25]} 22... dxe4
{[%clk 0:01:31.8]} 23. fxg5 {[%clk 0:01:16.9]} 23... Nd5 {[%clk 0:01:22.9]} 24.
Qh5 {[%clk 0:00:57.4]} 24... Qxh5 {[%clk 0:01:21.6]} 25. Nxh5 {[%clk 0:00:57.1]}
25... h6 {[%clk 0:01:19.5]} 26. gxh6 {[%clk 0:00:47.6]} 26... Bxh6 {[%clk
0:01:19.2]} 27. a3 {[%clk 0:00:44.5]} 27... Kh7 {[%clk 0:01:14]} 28. Rxg8 {[%clk
0:00:41.7]} 28... Rxg8 {[%clk 0:01:12.5]} 29. Rg1 {[%clk 0:00:41.3]} 29... Ra8
{[%clk 0:01:01.1]} 30. Bc1 {[%clk 0:00:15.4]} 30... a5 {[%clk 0:01:00.7]} 31.
Bd2 {[%clk 0:00:15.5]} 31... axb4 {[%clk 0:01:00]} 32. Bxb4 {[%clk 0:00:13.5]}
32... Ra4 {[%clk 0:00:58.7]} 33. h4 {[%clk 0:00:11.2]} 33... Ra8 {[%clk
0:00:53.7]} 34. Kh3 {[%clk 0:00:11.2]} 34... Rf8 {[%clk 0:00:33]} 35. Rg2 {[%clk
0:00:10.7]} 35... Rf7 {[%clk 0:00:28.2]} 36. Rg1 {[%clk 0:00:10.7]} 36... Bf8
{[%clk 0:00:27.5]} 37. Rg2 {[%clk 0:00:10.2]} 37... Rd7 {[%clk 0:00:25.1]} 38.
Rg1 {[%clk 0:00:09]} 38... Kh6 {[%clk 0:00:24.7]} 39. Ng3 {[%clk 0:00:08.9]}
39... Rg7 {[%clk 0:00:23]} 40. Ne2 {[%clk 0:00:08.1]} 40... Rxg1 {[%clk
0:00:19.2]} 41. Nxg1 {[%clk 0:00:08.2]} 41... Be7 {[%clk 0:00:19.9]} 42. Ne2
{[%clk 0:00:08.3]} 42... Bd8 {[%clk 0:00:20.1]} 43. Ng3 {[%clk 0:00:06.8]} 43...
Bc7 {[%clk 0:00:20.2]} 44. Bd2 {[%clk 0:00:06.7]} 44... Bb8 {[%clk 0:00:18.8]}
45. a4 {[%clk 0:00:06.8]} 45... Bc7 {[%clk 0:00:18.5]} 46. Ne2 {[%clk
0:00:06.9]} 46... Kh5 {[%clk 0:00:17.6]} 47. Ng3+ {[%clk 0:00:06.9]} 47... Kg6
{[%clk 0:00:17.5]} 48. Ne2 {[%clk 0:00:06.6]} 48... Nf6 {[%clk 0:00:17.4]} 49.
Ng3 {[%clk 0:00:05.6]} 49... Bb8 {[%clk 0:00:14]} 50. Kg2 {[%clk 0:00:05.4]}
50... Ng4 {[%clk 0:00:13]} 51. f3 {[%clk 0:00:05]} 51... exf3+ {[%clk
0:00:11.5]} 52. Kxf3 {[%clk 0:00:05]} 52... Nf6 {[%clk 0:00:11.5]} 53. Be1
{[%clk 0:00:04.1]} 53... Bxg3 {[%clk 0:00:04.9]} 54. Bxg3 {[%clk 0:00:03.5]}
54... Nd5 {[%clk 0:00:04.4]} 0-1